bitfinex-derivatives/quotes_ETHF0:USTF0_20250505
["timestamp","ask_amount","ask_price","bid_price","bid_amount"]
[1746446940259,6.52261,1806.4,1806.3,3.597]
[1746446940460,1.10718,1806.3,1806.2,1.1072]
[1746446940656,2.79068,1806.3,1806.2,1.1072]
[1746446941159,6.52268,1806.3,1806.2,1.1072]
[1746446941651,5.4155,1806.3,1806.2,1.1072]
[1746446941853,1.10724,1806.2,1806.1,7.91207]
[1746446942052,3.50634,1806.2,1806.1,6.8048]
[1746446942261,2.3991,1806.2,1806.1,7.9121]
[1746446943159,6.1311,1806.2,1806.1,7.9121]
[1746446943362,7.23834,1806.2,1806.1,7.9121]
[1746446943550,1.1073,1806.1,1806.0,2.985]
[1746446943756,3.5168,1806.1,1806.0,4.09236]
[1746446944257,7.2488,1806.1,1806.0,4.09236]
[1746446945557,6.1415,1806.1,1806.0,4.09236]
[1746446946662,7.2488,1806.1,1806.0,4.09236]
[1746446946852,6.1415,1806.1,1806.0,4.09236]
[1746446947461,7.2488,1806.1,1806.0,4.09236]
[1746446947958,6.1415,1806.1,1806.0,4.09236]
[1746446948159,7.2488,1806.1,1806.0,4.09236]
[1746446949763,6.1415,1806.1,1806.0,4.09236]
[1746446950059,7.2488,1806.1,1806.0,4.09236]
[1746446950462,6.1415,1806.1,1806.0,4.09236]
[1746446950663,7.2488,1806.1,1806.0,4.09236]
[1746446953264,6.1415,1806.1,1806.0,4.09236]
[1746446954164,1.5999,1806.1,1806.0,5.73726]
[1746446955768,2.7072,1806.1,1806.0,4.09236]
[1746446957258,1.5999,1806.1,1806.0,4.09236]
[1746446957564,2.7072,1806.1,1806.0,4.09236]
[1746446957763,1.5999,1806.1,1806.0,4.09236]
[1746446961564,1.5999,1806.1,1806.0,5.77996]
[1746446961967,1.5999,1806.1,1806.0,6.57976]
[1746446964260,1.5999,1806.1,1806.0,4.89216]
[1746446965368,2.7072,1806.1,1806.0,4.89216]
[1746446965668,2.7072,1806.1,1806.0,4.09236]
[1746446966467,1.5999,1806.1,1806.0,4.09236]
[1746446966767,2.7072,1806.1,1806.0,4.09236]
[1746446966966,1.5999,1806.1,1806.0,4.09236]
[1746446967167,5.3319,1806.1,1806.0,4.09236]
[1746446967870,6.4392,1806.1,1806.0,2.985]
[1746446968872,6.4392,1806.1,1806.0,4.09236]
[1746446970967,5.3319,1806.1,1806.0,4.09236]
[1746446971172,1.5999,1806.1,1806.0,4.09236]
[1746446972171,5.3319,1806.1,1806.0,4.09236]
[1746446972770,6.4392,1806.1,1806.0,4.09236]
[1746446972972,5.3319,1806.1,1806.0,4.09236]
[1746446974388,6.4392,1806.1,1806.0,4.09236]
[1746446975286,5.3319,1806.1,1806.0,4.09236]
[1746446975889,6.4392,1806.1,1806.0,4.09236]
[1746446976187,5.3319,1806.1,1806.0,4.09236]
[1746446976585,6.4392,1806.1,1806.0,4.09236]
[1746446978383,6.4392,1806.1,1806.0,7.30016]
[1746446979191,3.732,1806.1,1806.0,7.30016]
[1746446979393,3.732,1806.1,1806.0,8.93006]
[1746446979589,5.3825,1806.1,1806.0,8.93006]
[1746446980089,6.4898,1806.1,1806.0,7.30016]
[1746446982992,5.3825,1806.1,1806.0,7.30016]
[1746446983200,6.4898,1806.1,1806.0,7.30016]
[1746446984293,5.3825,1806.1,1806.0,7.30016]
[1746446985194,1.6505,1806.1,1806.0,7.30016]
[1746446985791,2.7578,1806.1,1806.0,7.30016]
[1746446986000,1.6505,1806.1,1806.0,7.30016]
[1746446986296,5.3825,1806.1,1806.0,7.30016]
[1746446990596,5.3825,1806.1,1806.0,9.81816]
[1746446992492,5.3825,1806.1,1806.0,10.65546]
[1746446993098,1.6505,1806.1,1806.0,10.65546]
[1746446993396,5.48850056,1806.3,1806.2,1.10724]
[1746446993597,7.21400056,1806.3,1806.2,4.31504]
[1746446994188,10.94600056,1806.3,1806.2,4.31504]
[1746446994385,9.22050056,1806.3,1806.2,6.05064]
[1746446995193,3.73928068,1806.3,1806.2,6.05064]
[1746446996498,3.73928068,1806.3,1806.2,9.03514]
[1746446997802,5.35158068,1806.3,1806.2,9.03514]
[1746446998602,3.73928068,1806.3,1806.2,9.03514]
[1746447001402,1.6973,1806.7,1806.6,1.10699]
[1746447001606,1.6973,1806.7,1806.6,7.90979]
[1746447002099,5.4293,1806.7,1806.6,7.90979]
[1746447007209,6.53623,1806.7,1806.6,6.8028]
[1746447007410,6.53623,1806.7,1806.6,7.90979]
[1746447008711,6.53623,1806.7,1806.6,6.8028]
[1746447009311,6.53623,1806.7,1806.6,7.90979]
[1746447011402,5.4293,1806.7,1806.6,7.90979]
[1746447012212,6.53623,1806.7,1806.6,7.90979]
[1746447012405,5.4293,1806.7,1806.6,7.90979]
[1746447012605,6.53623,1806.7,1806.6,7.90979]
[1746447012807,5.4293,1806.7,1806.6,7.90979]
[1746447013012,6.53623,1806.7,1806.6,7.90979]
[1746447013305,5.4293,1806.7,1806.6,7.90979]
[1746447013510,6.53623,1806.7,1806.6,7.90979]
[1746447013914,5.4293,1806.7,1806.6,7.90979]
[1746447014211,6.53623,1806.7,1806.6,7.90979]
[1746447014515,5.4293,1806.7,1806.6,7.90979]
[1746447015316,6.53623,1806.7,1806.6,7.90979]
[1746447015509,5.4293,1806.7,1806.6,7.90979]
[1746447016716,6.53623,1806.7,1806.6,7.90979]
[1746447017009,5.4293,1806.7,1806.6,7.90979]
[1746447017213,6.53623,1806.7,1806.6,7.90979]
[1746447017418,5.4293,1806.7,1806.6,7.90979]
[1746447017619,6.53623,1806.7,1806.6,7.90979]
[1746447018517,5.4293,1806.7,1806.6,7.90979]
[1746447019017,6.53623,1806.7,1806.6,7.90979]
[1746447019412,6.53623,1806.7,1806.6,6.8028]
[1746447023925,6.53623,1806.7,1806.6,7.90979]
[1746447026721,6.53623,1806.7,1806.6,6.8028]
[1746447030126,6.53623,1806.7,1806.6,3.595]
[1746447031029,1.10699,1806.6,1806.5,3.2078]
[1746447031227,2.68809,1806.6,1806.5,3.2078]
[1746447032134,6.42009,1806.6,1806.5,3.2078]
[1746447032332,5.53549,1806.5,1806.3,3.2078]
[1746447032526,1.10711,1806.4,1806.3,3.2078]
[1746447032723,2.82771,1806.4,1806.3,3.2078]
[1746447033234,6.55971,1806.4,1806.3,3.2078]
[1746447033729,6.55971,1806.4,1806.3,4.31498]
[1746447034428,6.55971,1806.4,1806.3,5.97098]
[1746447035722,6.55971,1806.4,1806.3,4.8638]
[1746447036825,6.55971,1806.4,1806.3,5.97098]
[1746447037327,6.55971,1806.4,1806.3,4.8638]
[1746447037627,6.55971,1806.4,1806.3,4.31498]
[1746447037828,6.55971,1806.4,1806.3,3.2078]
[1746447038232,6.55971,1806.4,1806.3,4.31498]
[1746447038931,5.4526,1806.4,1806.3,4.31498]
[1746447039132,6.55971,1806.4,1806.3,4.31498]
[1746447041026,5.4526,1806.4,1806.3,4.31498]
[1746447041330,6.55971,1806.4,1806.3,4.31498]
[1746447041530,5.4526,1806.4,1806.3,4.31498]
[1746447041732,5.4526,1806.4,1806.3,5.95638]
[1746447045541,5.4526,1806.4,1806.3,4.31498]
[1746447046432,6.55971,1806.4,1806.3,4.31498]
[1746447047842,6.55971,1806.4,1806.3,3.2078]
[1746447048036,3.732,1806.4,1806.3,4.31498]
[1746447048232,3.732,1806.4,1806.3,6.81618]
[1746447057249,1.6538,1806.7,1806.6,1.10699]
[1746447057450,5.3015755,1806.8,1806.7,1.10693]
[1746447057650,6.9553755,1806.8,1806.7,1.10693]
[1746447058244,11.7942455,1806.8,1806.7,1.10693]
[1746447058444,10.6873755,1806.8,1806.7,1.10693]
[1746447058746,11.7942455,1806.8,1806.7,1.10693]
[1746447061051,8.10457,1806.8,1806.7,1.10693]
[1746447061556,8.10457,1806.8,1806.7,4.08803]
[1746447065056,11.7942455,1806.8,1806.7,4.08803]
[1746447066756,10.6873755,1806.8,1806.7,4.08803]
[1746447070955,11.7942455,1806.8,1806.7,4.08803]
[1746447071563,11.7942455,1806.8,1806.7,2.9811]
[1746447071752,15.0020455,1806.8,1806.7,2.9811]
[1746447072263,11.31237,1806.8,1806.7,2.9811]
[1746447072860,16.31237,1806.8,1806.7,0.21297989]
[1746447073061,1.10699,1806.6,1806.5,4.69705]
[1746447074062,4.83899,1806.6,1806.5,4.69705]
[1746447074359,3.732,1806.6,1806.5,4.69705]
[1746447074761,5.3718,1806.6,1806.5,4.69705]
[1746447075863,9.0614755,1806.6,1806.5,4.69705]
[1746447076064,10.1684655,1806.6,1806.5,4.69705]
[1746447076562,9.0614755,1806.6,1806.5,4.69705]
[1746447076765,10.1684655,1806.6,1806.5,4.69705]
[1746447077365,9.0614755,1806.6,1806.5,4.69705]
[1746447078366,3.732,1806.6,1806.5,4.69705]
[1746447078567,3.732,1806.6,1806.5,11.40095]
[1746447081068,3.732,1806.6,1806.5,6.40095]
[1746447083179,1.6506,1806.8,1806.7,1.10693]
[1746447083366,1.6506,1806.8,1806.7,4.31473]
[1746447083959,1.6506,1806.8,1806.7,5.99523]
[1746447084163,5.3826,1806.8,1806.7,5.99523]
[1746447086271,3.732,1806.8,1806.7,5.99523]
[1746447086769,7.44090355,1807.7,1807.6,1.10638]
[1746447087070,31.17927363,1808.0,1807.9,1.1062]
[1746447087264,31.17927363,1808.0,1807.9,7.903]
[1746447088069,34.91127363,1808.0,1807.9,7.903]
[1746447088770,34.91127363,1808.0,1807.9,8.61895211]
[1746447088967,34.91127363,1808.0,1807.9,9.33943022]
[1746447089178,34.91127363,1808.0,1807.9,9.33942905]
[1746447089179,27.10919304,1808.0,1807.9,9.33942905]
[1746447089372,27.10919304,1808.0,1807.9,9.33933555]
[1746447089671,15.4661689,1808.0,1807.9,9.33916541]
[1746447090075,15.4661689,1808.0,1807.9,8.61881891]
[1746447090262,15.4661689,1808.0,1807.9,9.33497312]
[1746447090468,15.4661689,1808.0,1807.9,8.61673005]
[1746447090670,15.4661689,1808.0,1807.9,9.33494672]
[1746447090867,15.4661689,1808.0,1807.9,8.61673005]
[1746447091175,15.4661689,1808.0,1807.9,9.33495308]
[1746447091176,5.3911,1808.0,1807.9,9.33495308]
[1746447091374,5.3911,1808.0,1807.9,8.61673005]
[1746447091564,5.3911,1808.0,1807.9,9.33495358]
[1746447091765,5.3911,1808.0,1807.9,9.33513398]
[1746447091969,0.8048,1808.2,1808.1,1.10607]
[1746447092170,4.5368,1808.2,1808.1,5.03223933]
[1746447092370,4.5368,1808.2,1808.1,5.74606416]
[1746447092571,4.5368,1808.2,1808.1,5.02768835]
[1746447092773,4.5368,1808.2,1808.1,5.74599276]
[1746447092975,4.5368,1808.2,1808.1,5.02768301]
[1746447093575,4.5368,1808.2,1808.1,5.74348981]
[1746447093777,4.5368,1808.2,1808.1,5.74347985]
[1746447093969,4.5368,1808.2,1808.1,5.74344716]
[1746447094171,4.5368,1808.2,1808.1,5.03088993]
[1746447094775,4.5368,1808.2,1808.1,5.03538763]
[1746447095276,6.1394,1808.2,1808.1,5.03538763]
[1746447095472,6.1394,1808.2,1808.1,5.03536214]
[1746447095679,6.1394,1808.2,1808.1,4.31387]
[1746447098071,6.1394,1808.2,1808.1,8.08187]
[1746447098568,6.1394,1808.2,1808.1,4.31387]
[1746447098883,11.1394,1808.2,1807.9,3.768]
[1746447099179,2.81771,1808.1,1808.0,1.10613]
[1746447099581,7.81771,1808.1,1808.0,1.10613]
[1746447100076,11.54971,1808.1,1808.0,1.10613]
[1746447100577,1.10617,1808.0,1807.9,1.10613]
[1746447100776,2.74817,1808.0,1807.9,1.10613]
[1746447100975,1.1062,1807.9,1807.8,1.32171]
[1746447101176,5.374,1807.9,1807.8,1.32171]
[1746447101377,6.4802,1807.9,1807.8,1.10621]
[1746447101772,11.4802,1807.9,1807.8,1.10621]
[1746447101978,1.10626,1807.8,1807.7,4.31408]
[1746447102278,3.61316,1807.8,1807.7,4.31408]
[1746447102477,4.40576,1807.8,1807.7,4.31408]
[1746447103088,8.13776,1807.8,1807.7,4.31408]
[1746447103786,8.13776,1807.8,1807.5,6.53409]
[1746447103787,1.10632,1807.7,1807.6,1.10633]
[1746447103983,2.76072,1807.7,1807.6,1.10633]
[1746447104181,6.49272,1807.7,1807.6,1.10633]
[1746447108284,3.2078,1808.2,1807.6,5.0]
[1746447108483,3.2078,1808.5,1808.1,3.2078]
[1746447108686,7.60273,1808.5,1807.9,3.2078]
[1746447108883,2.76473,1808.4,1807.9,3.2078]
[1746447109181,1.10613,1808.0,1807.9,3.2078]
[1746447109482,1.10629,1807.8,1807.7,3.2078]
[1746447109682,1.91752,1807.9,1807.7,3.2078]
[1746447110187,5.64952,1807.9,1807.7,3.2078]
[1746447110387,5.64952,1807.9,1807.7,4.31411]
[1746447110688,1.10626,1807.8,1807.7,3.2078]
[1746447111086,4.83826,1807.8,1807.7,3.2078]
[1746447111390,4.83826,1807.8,1807.7,4.31412]
[1746447111989,4.83826,1807.8,1807.7,3.2078]
[1746447112484,4.83826,1807.8,1807.7,4.31412]
[1746447112691,5.69066,1807.8,1807.7,4.31412]
[1746447112989,4.5844,1807.8,1807.7,4.31412]
[1746447113390,4.5844,1807.8,1807.5,3.2078]
[1746447113688,4.87434,1807.7,1807.6,1.10636]
[1746447114094,8.60634,1807.7,1807.6,1.10636]
[1746447115189,7.5,1807.7,1807.6,1.10636]
[1746447115795,8.60632,1807.7,1807.6,1.10636]
[1746447116088,7.5,1807.7,1807.6,1.10636]
[1746447116486,8.60632,1807.7,1807.6,1.10636]
[1746447117889,8.60636,1807.7,1807.6,1.10638]
[1746447121199,7.5,1807.7,1807.6,1.10638]
[1746447121386,8.60632,1807.7,1807.6,2.72118]
[1746447121590,8.60632,1807.7,1807.6,1.10638]
[1746447124594,2.76427,1808.7,1808.2,1.10598]
[1746447124896,1.10613,1808.0,1807.9,3.2078]
[1746447125097,1.10613,1808.1,1807.9,4.31397]
[1746447125295,0.8217,1808.0,1807.9,4.31397]
[1746447125495,0.8217,1808.0,1807.9,5.03532064]
[1746447125496,1.6114,1808.0,1807.9,5.03532064]
[1746447125799,3.873,1808.2,1808.1,1.10607]
[1746447126191,7.605,1808.2,1808.1,1.10607]
[1746447126393,9.2938,1808.2,1808.1,1.10607]
[1746447126593,5.4208,1808.2,1808.1,1.82854457]
[1746447126792,5.4208,1808.2,1808.1,1.10607]
[1746447127298,5.4208,1808.2,1808.1,1.8292229]
[1746447128295,5.4208,1808.2,1808.1,1.10607]
[1746447128503,5.4208,1808.2,1808.1,1.82919381]
[1746447128696,5.4208,1808.2,1808.1,1.82920325]
[1746447129202,5.4208,1808.2,1808.1,1.8184004]
[1746447129402,3.732,1808.2,1808.1,2.54137037]
[1746447129596,3.732,1808.2,1808.1,2.6330004]
[1746447129899,3.732,1808.2,1808.1,3.35538287]
[1746447130096,3.732,1808.2,1808.1,2.6330004]
[1746447130304,3.732,1808.2,1808.1,5.85089426]
[1746447130805,3.732,1808.2,1808.1,6.56253993]
[1746447131101,3.732,1808.2,1808.1,5.84011567]
[1746447131300,3.732,1808.2,1808.1,6.56199025]
[1746447131497,3.732,1808.2,1808.1,6.56198849]
[1746447131695,3.732,1808.2,1808.1,11.56189843]
[1746447131898,3.732,1808.2,1808.1,10.84011567]
[1746447132096,3.732,1808.2,1808.1,13.21740245]
[1746447132900,3.732,1808.2,1808.1,12.49581567]
[1746447133098,3.732,1808.2,1808.1,7.49581567]
[1746447133298,3.732,1808.2,1808.1,7.49530706]
[1746447133699,3.732,1808.2,1808.1,6.69118315]
[1746447133902,3.732,1808.2,1808.1,6.69106823]
[1746447134597,3.732,1808.2,1808.1,6.69110382]
[1746447134902,3.732,1808.2,1808.1,6.69109317]
[1746447135103,6.47971,1808.2,1808.1,6.69109317]
[1746447135303,7.27041,1808.2,1808.1,3.2078]
[1746447135505,1.10613,1808.0,1807.9,4.31399]
[1746447135708,1.10613,1808.0,1807.9,3.92944838]
[1746447135906,1.10613,1808.0,1807.9,3.2078]
[1746447136212,1.1062,1807.9,1807.8,1.10622]
[1746447136504,1.8969,1807.9,1807.8,1.10622]
[1746447136707,3.5191,1807.9,1807.8,1.10622]
[1746447136906,1.10626,1807.8,1807.7,4.3141]
[1746447137202,6.46046,1807.8,1807.7,4.3141]
[1746447138803,1.10632,1807.7,1807.6,1.93793]
[1746447139107,2.72852,1807.7,1807.6,1.82735255]
[1746447139310,3.58532,1807.7,1807.6,0.72102255]
[1746447139709,1.10638,1807.6,1807.5,4.52731]
[1746447139903,2.74758,1807.6,1807.5,5.24860264]
[1746447140104,6.47958,1807.6,1807.5,5.24860264]
[1746447140410,6.47958,1807.6,1807.5,4.1422166]
[1746447140708,6.47958,1807.6,1807.5,4.14221551]
[1746447140908,7.28758,1807.6,1807.5,4.14221551]
[1746447141213,7.28758,1807.6,1807.5,5.24863655]
[1746447141803,7.28758,1807.6,1807.5,5.2486366]
[1746447142010,7.28758,1807.6,1807.5,3.4209]
[1746447149816,7.28758,1807.6,1807.5,0.2131]
[1746447150017,7.28758,1807.6,1807.5,1.31954]
[1746447150727,6.1812,1807.6,1807.5,1.31954]
[1746447151016,7.28758,1807.6,1807.5,4.52734]
[1746447154317,7.28758,1807.6,1807.5,3.4209]
[1746447154914,7.28758,1807.6,1807.5,4.52734]
[1746447157418,7.28758,1807.6,1807.5,3.4209]
[1746447157621,7.28758,1807.6,1807.5,4.52734]
[1746447160726,6.47958,1807.6,1807.5,4.52734]
[1746447161024,5.3732,1807.6,1807.5,4.52734]
[1746447161625,5.3732,1807.6,1807.5,6.25254]
[1746447162326,3.732,1807.6,1807.5,6.25254]
[1746447162714,3.732,1807.6,1807.5,6.95876808]
[1746447165931,5.4629,1807.6,1807.5,6.95876808]
[1746447174429,5.4629,1807.6,1807.5,5.23356808]
[1746447174625,7.39848,1807.6,1807.5,4.12712808]
[1746447175730,7.39848,1807.6,1807.5,3.4209]
[1746447176937,1.1065,1807.4,1807.3,3.2078]
[1746447177336,1.1065,1807.4,1807.3,4.31436]
[1746447177534,1.9245,1807.4,1807.3,3.2078]
[1746447177728,1.9245,1807.4,1807.3,4.31436]
[1746447178038,1.9245,1807.4,1807.3,3.2078]
[1746447178239,5.6565,1807.4,1807.3,3.2078]
[1746447179842,1.10656,1807.3,1807.2,0.1]
[1746447180140,7.31156,1807.3,1807.2,0.1]
[1746447184146,7.31156,1807.3,1807.2,1.20662]
[1746447184344,7.31156,1807.3,1807.2,0.1]
[1746447185644,12.31156,1807.3,1807.2,0.1]
[1746447186043,7.31156,1807.3,1807.2,0.1]
[1746447187237,1.10687,1806.8,1806.7,4.31471]
[1746447188144,2.71977,1806.8,1806.7,4.31471]
[1746447188347,6.45177,1806.8,1806.7,4.31471]
[1746447188841,6.45177,1806.8,1806.7,3.2078]
[1746447189741,1.10699,1806.6,1806.5,1.10703]
[1746447190147,4.83899,1806.6,1806.5,1.10703]
[1746447190347,6.49569,1806.6,1806.5,1.10703]
[1746447191536,5.69009,1806.6,1806.5,1.10703]
[1746447192840,7.37079,1806.6,1806.5,1.10703]
[1746447194148,1.10705,1806.5,1806.4,5.10897]
[1746447194451,1.6807,1806.5,1806.4,5.10897]
[1746447195149,5.4127,1806.5,1806.4,5.10897]
[1746447195446,5.4127,1806.5,1806.4,6.81807]
[1746447195752,3.732,1806.5,1806.4,6.81807]
[1746447198052,3.732,1806.5,1806.4,11.81807]
[1746447198646,3.732,1806.5,1806.4,6.81807]
[1746447198851,3.732,1806.5,1806.4,11.81807]
[1746447199253,1.6173,1807.0,1806.9,1.10681]
[1746447199453,2.72405,1807.0,1806.9,4.31461]
[1746447200252,6.45605,1807.0,1806.9,4.31461]
[1746447201051,6.45605,1807.0,1806.9,3.2078]
[1746447202153,6.45605,1807.0,1806.9,4.31461]
[1746447203261,6.45605,1807.0,1806.9,3.2078]
[1746447203554,6.45605,1807.0,1806.9,4.31461]
[1746447203854,6.45605,1807.0,1806.9,3.2078]
[1746447207456,6.45605,1807.0,1806.9,4.31461]
[1746447207754,6.45605,1807.0,1806.9,3.2078]
[1746447208754,6.45605,1807.0,1806.9,4.31461]
[1746447209650,6.45605,1807.0,1806.9,3.2078]
[1746447210153,1.10681,1806.9,1806.8,1.10683]
[1746447210449,2.79291,1806.9,1806.8,1.10683]
[1746447211157,6.52491,1806.9,1806.8,1.10683]
[1746447212961,1.10687,1806.8,1806.7,7.62698]
[1746447213160,6.46027,1806.8,1806.7,5.15068]
[1746447213460,6.46027,1806.8,1806.7,3.2078]
[1746447213461,8.08197,1806.8,1806.7,3.2078]
[1746447213650,8.08197,1806.8,1806.7,4.31473]
[1746447214257,8.08197,1806.8,1806.7,3.2078]
[1746447214760,8.08197,1806.8,1806.7,4.31473]
[1746447215062,8.08197,1806.8,1806.7,3.2078]
[1746447216859,8.08197,1806.8,1806.7,4.31473]
[1746447217261,8.08197,1806.8,1806.7,3.2078]
[1746447217770,8.08197,1806.8,1806.7,4.31473]
[1746447218265,8.08197,1806.8,1806.7,3.2078]
[1746447220164,8.08197,1806.8,1806.7,4.31473]
[1746447220766,8.08197,1806.8,1806.7,3.2078]
[1746447221065,8.08197,1806.8,1806.7,4.31473]
[1746447221262,1.10699,1806.7,1806.5,5.97541]
[1746447221468,1.10699,1806.7,1806.6,1.10693]
[1746447222169,4.83899,1806.7,1806.6,1.10693]
[1746447222465,1.10699,1806.6,1806.5,4.31482]
[1746447222665,1.10699,1806.6,1806.5,3.2078]
[1746447223066,1.10699,1806.6,1806.5,4.31485]
[1746447223267,4.83899,1806.6,1806.5,4.31485]
[1746447223468,4.83899,1806.6,1806.5,3.2078]
[1746447224870,4.83899,1806.6,1806.5,4.31485]
[1746447225869,3.732,1806.6,1806.5,4.31485]
[1746447227172,3.732,1806.6,1806.5,5.15855]
[1746447227474,3.732,1806.6,1806.5,6.85695]
[1746447230774,0.25781,1806.6,1806.5,11.85695]
[1746447230972,1.10663,1807.2,1807.1,1.10662]
[1746447231174,1.10663,1807.2,1807.1,4.31442]
[1746447232173,4.83863,1807.2,1807.1,4.31442]
[1746447235375,9.21124191,1807.6,1807.5,1.10644]
[1746447235579,9.21124191,1807.6,1807.5,8.03924]
[1746447236273,12.94324191,1807.6,1807.5,4.31424]
[1746447236570,14.60194191,1807.6,1807.5,4.31424]
[1746447238073,15.70832191,1807.6,1807.5,4.31424]
[1746447239279,15.70832191,1807.6,1807.5,1.10644]
[1746447240282,14.60194191,1807.6,1807.3,3.2078]
[1746447240483,2.71829,1807.5,1807.4,1.10648]
[1746447241181,5.3438,1807.5,1807.4,1.10648]
[1746447242086,6.45024,1807.5,1807.4,1.10648]
[1746447242381,5.3438,1807.5,1807.4,1.10648]
[1746447242683,6.45024,1807.5,1807.4,1.10648]
[1746447243183,5.3438,1807.5,1807.4,1.10648]
[1746447243584,6.45024,1807.5,1807.4,1.10648]
[1746447245187,1.10666,1807.2,1807.1,4.31442]
[1746447246085,4.83866,1807.2,1807.1,4.31442]
[1746447247078,3.732,1807.2,1807.1,4.31442]
[1746447247280,4.83862,1807.2,1807.1,4.31442]
[1746447253489,3.732,1807.2,1807.1,4.31442]
[1746447253681,4.83862,1807.2,1807.1,4.31442]
[1746447253881,5.4256,1807.2,1807.1,4.31442]
[1746447254186,6.53222,1807.2,1807.1,4.31442]
[1746447254590,5.4256,1807.2,1807.1,4.31442]
[1746447254891,3.732,1807.2,1807.1,9.31442]
[1746447255186,3.732,1807.2,1807.1,16.17873735]
[1746447256793,3.732,1807.2,1807.1,16.17873735]
[1746447257089,3.732,1807.2,1807.1,11.17873735]
[1746447259583,3.732,1807.2,1807.1,7.97093735]
[1746447259786,3.732,1807.2,1807.1,11.17873735]
[1746447260385,3.732,1807.2,1807.1,11.17995662]
[1746447261294,3.732,1807.2,1807.1,11.17992235]
[1746447262293,1.5657,1807.4,1807.3,1.10656]
[1746447262593,1.5657,1807.4,1807.3,5.02096235]
[1746447263088,0.81,1807.6,1807.5,1.10644]
[1746447263295,1.10638,1807.7,1807.6,1.10638]
[1746447263497,2.74719,1807.8,1807.7,1.10632]
[1746447263696,0.81,1807.8,1807.7,4.31412]
[1746447263993,1.93711,1807.9,1807.8,1.10626]
[1746447264293,1.10626,1807.8,1807.7,4.31407]
[1746447264995,1.10626,1807.8,1807.7,3.2078]
[1746447265195,4.83826,1807.8,1807.7,3.2078]
[1746447265495,4.83826,1807.8,1807.7,1.10632]
[1746447265694,1.10638,1807.7,1807.6,1.10635]
[1746447265897,1.10638,1807.6,1807.5,4.31419]
[1746447266193,1.93908,1807.6,1807.5,3.2078]
[1746447266393,6.93908,1807.6,1807.5,3.2078]
[1746447267095,5.67108,1807.6,1807.5,3.2078]
[1746447268997,5.67108,1807.6,1807.5,4.31424]
[1746447270394,3.732,1807.6,1807.5,4.31424]
[1746447271494,3.732,1807.6,1807.5,10.88734]
[1746447271698,3.732,1807.6,1807.5,5.88734]
[1746447273295,1.6531,1807.9,1807.8,1.10626]
[1746447273595,1.6531,1807.9,1807.8,4.31406]
[1746447274103,5.3851,1807.9,1807.8,4.31406]
[1746447274903,6.4913,1807.9,1807.8,4.31406]
[1746447275304,5.3851,1807.9,1807.8,4.31406]
[1746447275505,4.5801,1807.9,1807.8,4.31406]
[1746447275705,4.5801,1807.9,1807.8,5.88226]
[1746447276504,5.3028,1807.9,1807.8,5.88226]
[1746447276897,5.3028,1807.9,1807.8,6.69896]
[1746447277093,2.39401,1807.9,1807.8,11.69896]
[1746447277298,1.6116,1808.4,1808.3,1.10595]
[1746447277499,2.4915,1808.4,1808.3,4.31375]
[1746447277801,1.6946,1808.4,1808.3,4.31375]
[1746447277996,4.45939,1808.4,1808.1,3.2078]
[1746447278196,1.10606,1808.2,1808.1,4.31383]
[1746447278713,2.80066,1808.2,1808.1,4.31387]
[1746447279109,6.53266,1808.2,1808.1,4.31387]
[1746447280308,5.4266,1808.2,1808.1,4.31387]
[1746447283611,6.53261,1808.2,1808.1,3.2078]
[1746447283910,6.53261,1808.2,1808.1,4.31387]
[1746447284818,6.53261,1808.2,1808.1,3.2078]
[1746447285018,6.53261,1808.2,1808.1,4.31387]
[1746447285216,6.53261,1808.2,1808.1,3.2078]
[1746447285613,6.53261,1808.2,1808.1,4.31387]
[1746447288320,5.4266,1808.2,1808.1,4.31387]
[1746447288917,6.53261,1808.2,1808.1,4.31387]
[1746447289519,5.4266,1808.2,1808.1,4.31387]
[1746447290923,5.4266,1808.2,1808.1,5.97797]
[1746447291624,5.4266,1808.2,1808.1,9.67497]
[1746447292426,6.53261,1808.2,1808.1,3.2078]
[1746447292928,6.53261,1808.2,1808.1,4.31387]
[1746447294420,5.4266,1808.2,1808.1,4.31387]
[1746447294630,5.4266,1808.2,1808.1,5.01773848]
[1746447295027,5.4266,1808.2,1808.1,6.58153848]
[1746447295419,3.732,1808.2,1808.1,6.58153848]
[1746447295724,3.732,1808.2,1808.1,10.27853848]
[1746447296823,3.732,1808.2,1808.1,10.27865839]
[1746447297020,3.732,1808.2,1808.1,8.71485839]
[1746447297219,4.83801,1808.2,1808.1,3.2078]
[1746447297424,6.50931,1808.2,1808.1,4.31387]
[1746447298327,6.50931,1808.2,1808.1,3.2078]
[1746447298932,6.50931,1808.2,1808.1,4.31387]
[1746447299435,6.50931,1808.2,1808.1,3.2078]
[1746447299733,6.50931,1808.2,1808.1,4.31387]
[1746447300133,6.50931,1808.2,1808.1,5.0198616]
[1746447302134,6.50931,1808.2,1808.1,4.31387]
[1746447302335,6.50931,1808.2,1808.1,5.01985098]
[1746447303136,6.50931,1808.2,1808.1,3.91378098]
[1746447303537,6.50931,1808.2,1808.1,5.01985098]
[1746447304137,6.50931,1808.2,1808.1,4.31387]
[1746447304437,6.50931,1808.2,1808.1,5.02012381]
[1746447305132,3.732,1808.2,1808.1,5.02012381]
[1746447305338,3.732,1808.2,1808.1,6.59412381]
[1746447305830,5.4098,1808.2,1808.1,5.88787]
[1746447306036,5.4098,1808.2,1808.1,6.59390395]
[1746447307740,6.51581,1808.2,1808.1,3.91383395]
[1746447307931,7.33881,1808.2,1808.1,3.91383395]